bitfinex-derivatives/quotes_BTCF0:USTF0_20260106
["timestamp","ask_amount","ask_price","bid_price","bid_amount"]
[1767681959087,0.06594753,93986.0,93968.0,0.12342838]
[1767681959890,0.07659053,93986.0,93968.0,0.12342838]
[1767681960390,0.07659053,93986.0,93968.0,0.09423371]
[1767681960984,0.02874822,93984.0,93963.0,0.010646]
[1767681961185,0.02874822,93981.0,93958.0,0.010646]
[1767681961377,0.010644,93975.0,93955.0,0.11864283]
[1767681961688,0.09048,93974.0,93955.0,0.11864283]
[1767681961902,0.09048,93974.0,93944.0,0.0568714]
[1767681961903,0.12374598,93966.0,93944.0,0.0568714]
[1767681962188,0.09048,93974.0,93957.0,0.02762056]
[1767681962385,0.09048,93974.0,93961.0,0.11864283]
[1767681962686,0.09048,93974.0,93961.0,0.09102227]
[1767681963381,0.010644,93979.0,93961.0,0.09102227]
[1767681963589,0.09048,93978.0,93961.0,0.09102227]
[1767681963888,0.010644,93977.0,93961.0,0.09102227]
[1767681964083,0.010643,93988.0,93973.0,0.11864283]
[1767681964385,0.010643,93986.0,93973.0,0.09102227]
[1767681964680,0.09048,93985.0,93968.0,0.02762056]
[1767681965386,0.010643,93984.0,93966.0,0.09102227]
[1767681965784,0.101123,93985.0,93966.0,0.10166727]
[1767681965984,0.101123,93985.0,93966.0,0.09102227]
[1767681966188,0.010644,93982.0,93966.0,0.09102227]
[1767681967177,0.010644,93982.0,93966.0,0.11864283]
[1767681967381,0.09048,93985.0,93966.0,0.11864283]
[1767681967578,0.010645,93973.0,93953.0,0.02762056]
[1767681967785,0.010645,93971.0,93956.0,0.09102227]
[1767681967977,0.101125,93972.0,93956.0,0.09102227]
[1767681968686,0.010645,93969.0,93950.0,0.09102227]
[1767681969388,0.02874822,93966.0,93946.0,0.09102227]
[1767681969779,0.12374598,93962.0,93939.0,0.11864283]
[1767681969979,0.12374598,93960.0,93939.0,0.09102227]
[1767681970179,0.010647,93954.0,93939.0,0.09102227]
[1767681970782,0.01075544,93953.0,93939.0,0.09102227]
[1767681970980,0.010647,93950.0,93939.0,0.09102227]
[1767681971181,0.00010844,93953.0,93939.0,0.09102227]
[1767681971783,0.01075544,93953.0,93939.0,0.09102227]
[1767681971980,0.010647,93948.0,93933.0,0.09102227]
[1767681972289,0.010648,93947.0,93933.0,0.11864283]
[1767681972588,0.101128,93947.0,93933.0,0.11864283]
[1767681972788,0.09048,93947.0,93933.0,0.11864283]
[1767681973294,0.010648,93946.0,93929.0,0.02762056]
[1767681973586,0.101128,93947.0,93929.0,0.02762056]
[1767681973988,0.12374598,93944.0,93921.0,0.09102227]
[1767681974184,0.010649,93934.0,93922.0,0.02762056]
[1767681974490,0.010649,93937.0,93923.0,0.11864283]
[1767681974691,0.09048,93936.0,93923.0,0.11864283]
[1767681974890,0.09048,93936.0,93923.0,0.09102227]
[1767681975189,0.010649,93935.0,93923.0,0.09102227]
[1767681975375,0.010649,93932.0,93917.0,0.09102227]
[1767681975580,9.376e-05,93931.0,93917.0,0.09102227]
[1767681975994,9.376e-05,93931.0,93917.0,0.11864283]
[1767681976287,0.010649,93930.0,93918.0,0.02762056]
[1767681976485,9.376e-05,93931.0,93913.0,0.02762056]
[1767681976793,0.12383974,93931.0,93909.0,0.02762056]
[1767681977385,0.01065,93928.0,93909.0,0.02762056]
[1767681977690,0.09509152,93931.0,93910.0,0.02762056]
[1767681977895,0.01065,93930.0,93910.0,0.11864283]
[1767681978092,0.053225,93973.0,93903.0,0.05759869]
[1767681978093,0.02874822,93948.0,93925.0,0.09102227]
[1767681978284,0.010648,93944.0,93925.0,0.11864283]
[1767681979193,4.772e-05,93943.0,93925.0,0.11864283]
[1767681979611,4.772e-05,93943.0,93926.0,0.11864283]
[1767681979798,4.772e-05,93943.0,93927.0,0.11864283]
[1767681980183,0.02874822,93965.0,93948.0,0.02762056]
[1767681980389,0.02874822,93965.0,93928.0,0.56056463]
[1767681980390,0.02874822,93965.0,93953.0,0.02762056]
[1767681980589,0.09052,93969.0,93959.0,0.02762056]
[1767681980991,0.09052,93971.0,93954.0,0.02762056]
[1767681981186,0.09052,93970.0,93954.0,0.02762056]
[1767681981699,0.09052,93970.0,93949.0,0.09102227]
[1767681982498,0.09052,93970.0,93949.0,0.11864283]
[1767681982897,0.09499776,93969.0,93944.0,0.02762056]
[1767681984297,0.09499776,93964.0,93939.0,0.11814056]
[1767681984484,0.09499776,93964.0,93942.0,0.02762056]
[1767681984690,0.09052,93970.0,93948.0,0.11864283]
[1767681987507,0.09052,93970.0,93946.0,0.11864283]
[1767681988301,0.010645,93969.0,93946.0,0.11864283]
[1767681988888,0.09052,93970.0,93941.0,0.010648]
[1767681988889,0.010646,93964.0,93941.0,0.010648]
[1767681989095,0.010646,93964.0,93941.0,0.03826856]
[1767681989401,0.010646,93964.0,93942.0,0.02762056]
[1767681990696,0.09499776,93965.0,93942.0,0.02762056]
[1767681990900,0.010647,93954.0,93937.0,0.02762056]
[1767681991101,0.101166,93958.0,93939.0,0.02972037]
[1767681991398,0.101166,93958.0,93942.0,0.02972037]
[1767681993106,0.101166,93958.0,93920.0,0.12248062]
[1767681993107,0.09195762,93947.0,93924.0,0.02972037]
[1767681993294,0.010647,93951.0,93933.0,0.12377149]
[1767681993500,0.09052,93950.0,93934.0,0.02972037]
[1767681994701,0.101167,93950.0,93934.0,0.02972037]
[1767681994902,0.09052,93950.0,93934.0,0.02972037]
[1767681995407,0.101167,93950.0,93934.0,0.02972037]
[1767681996609,0.09052,93950.0,93934.0,0.02972037]
[1767681997203,0.101167,93950.0,93934.0,0.02972037]
[1767681997398,0.09052,93950.0,93934.0,0.02972037]
[1767681998308,0.010647,93949.0,93934.0,0.02972037]
[1767681998508,0.09052,93950.0,93934.0,0.02972037]
[1767681998715,0.101167,93950.0,93934.0,0.02972037]
[1767681999709,0.101167,93950.0,93937.0,0.02972037]
[1767681999907,0.09052,93950.0,93938.0,0.010649]
[1767682000102,0.09052,93950.0,93937.0,0.02972037]
[1767682001010,0.09052,93950.0,93938.0,0.010649]
[1767682001214,0.09052,93957.0,93947.0,0.010648]
[1767682001513,0.09052,93957.0,93944.0,0.11986058]
[1767682001514,0.09052,93957.0,93946.0,0.11986058]
[1767682001903,0.09052,93957.0,93946.0,0.09405112]
[1767682002216,0.09052,93957.0,93943.0,0.010648]
[1767682002814,0.101166,93957.0,93941.0,0.12276576]
[1767682003016,0.09052,93957.0,93942.0,0.010648]
[1767682003315,0.010647,93956.0,93941.0,0.12276576]
[1767682003799,0.09052,93957.0,93941.0,0.12276576]
[1767682004003,0.101166,93957.0,93942.0,0.010648]
[1767682004202,0.101166,93957.0,93941.0,0.09405112]
[1767682004510,0.09052,93957.0,93941.0,0.09405112]
[1767682004714,0.09052,93957.0,93935.0,0.13170193]
[1767682005304,0.010647,93953.0,93937.0,0.010649]
[1767682006315,0.09052,93957.0,93936.0,0.09405112]
[1767682006511,0.010647,93954.0,93939.0,0.010648]
[1767682006812,0.010647,93954.0,93938.0,0.010648]
[1767682007417,0.101166,93957.0,93939.0,0.010648]
[1767682007716,0.09052,93957.0,93937.0,0.1202303]
[1767682007921,0.101166,93957.0,93940.0,0.010648]
[1767682008308,0.101166,93957.0,93942.0,0.010648]
[1767682008918,0.09052,93957.0,93942.0,0.010648]
[1767682009717,0.010647,93956.0,93942.0,0.010648]
[1767682010116,0.09052,93957.0,93938.0,0.11974904]
[1767682010305,0.010647,93956.0,93942.0,0.010648]
[1767682011111,0.09052,93957.0,93942.0,0.010648]
[1767682011310,0.09052,93957.0,93941.0,0.11946636]
[1767682011821,0.09052,93957.0,93944.0,0.11946636]
[1767682012123,0.09052,93957.0,93945.0,0.010648]
[1767682012419,0.09052,93957.0,93944.0,0.10469912]
[1767682012609,0.09052,93957.0,93944.0,0.010648]
[1767682013617,0.09052,93957.0,93941.0,0.11930819]
[1767682013821,0.09052,93957.0,93947.0,0.09796918]
[1767682014722,0.09052,93957.0,93947.0,0.10861618]
[1767682014920,0.02983558,93982.0,93960.0,0.11860461]
[1767682015110,0.09052,93982.0,93964.0,0.09405112]
[1767682015311,0.02870282,93980.0,93960.0,0.09796918]
[1767682015506,0.02870282,93980.0,93957.0,0.03519949]
[1767682015721,0.02870282,93980.0,93960.0,0.09796918]
[1767682015916,0.02870282,93980.0,93958.0,0.02665836]
[1767682016123,0.02870282,93980.0,93960.0,0.09796918]
[1767682016320,0.11873568,93980.0,93958.0,0.02665836]
[1767682017113,0.010644,93975.0,93958.0,0.02665836]
[1767682017919,0.010644,93975.0,93957.0,0.09813354]
[1767682017920,0.09052,93982.0,93961.0,0.1247919]
[1767682018521,0.101164,93982.0,93965.0,0.010645]
[1767682018817,0.02870282,93995.0,93969.0,0.03730336]
[1767682019119,0.09264792,93989.0,93972.0,0.1247919]
[1767682019321,0.010644,93982.0,93967.0,0.02665836]
[1767682020422,0.010644,93975.0,93964.0,0.09052]
[1767682020717,0.02870282,93984.0,93963.0,0.09052]
[1767682020718,0.010644,93978.0,93963.0,0.09052]
[1767682020909,0.0283159,93981.0,93960.0,0.1247919]
[1767682021116,0.09100578,93976.0,93956.0,0.20851244]
[1767682021312,0.010644,93976.0,93957.0,0.010646]
[1767682021719,0.010645,93972.0,93956.0,0.09021927]
[1767682021920,0.0283159,93978.0,93957.0,0.010646]
[1767682022430,0.0283159,93977.0,93957.0,0.010646]
[1767682022733,0.010644,93974.0,93956.0,0.18073927]
[1767682022918,0.0283159,93977.0,93956.0,0.18073927]
[1767682023120,0.010645,93973.0,93956.0,0.18073927]
[1767682023813,0.010645,93973.0,93956.0,0.09052]
[1767682024218,0.010645,93973.0,93953.0,0.09021927]
[1767682024416,0.0283159,93971.0,93949.0,0.02597538]
[1767682024632,0.010646,93963.0,93946.0,0.11619465]
[1767682024821,0.010646,93959.0,93942.0,0.02597538]
[1767682025028,0.010647,93956.0,93943.0,0.09052]
[1767682025231,0.010646,93960.0,93943.0,0.09052]
[1767682025432,0.010646,93957.0,93942.0,0.09052]
[1767682025627,0.0283159,93960.0,93939.0,0.010648]
[1767682025628,0.0283159,93958.0,93939.0,0.010648]
[1767682025927,0.0283159,93957.0,93941.0,0.15995396]
[1767682026230,0.0283159,93957.0,93940.0,0.15995396]
[1767682026433,0.010647,93956.0,93939.0,0.16055821]
[1767682026619,0.010647,93955.0,93934.0,0.09021927]
[1767682026821,0.0283159,93957.0,93937.0,0.010649]
[1767682027021,0.0283159,93957.0,93934.0,0.10086827]
[1767682027022,0.010647,93955.0,93934.0,0.10086827]
[1767682027222,0.1188359,93967.0,93945.0,0.11617547]
[1767682027422,0.010646,93961.0,93940.0,0.0259562]
[1767682027630,0.010646,93961.0,93941.0,0.09021927]
[1767682028921,0.010647,93956.0,93941.0,0.09021927]
[1767682029330,0.010646,93960.0,93941.0,0.09021927]
[1767682029522,0.010646,93957.0,93941.0,0.09021927]
[1767682030225,0.010647,93955.0,93941.0,0.09021927]
[1767682030426,0.0283159,93954.0,93934.0,0.09021927]
[1767682030726,0.0283159,93951.0,93929.0,0.15879388]
[1767682031029,0.010648,93941.0,93922.0,0.09021927]
[1767682031222,0.09052,93941.0,93922.0,0.09021927]
[1767682031422,0.09052,93941.0,93923.0,0.15961168]
[1767682031627,0.101168,93941.0,93923.0,0.15961168]
[1767682031829,0.09052,93941.0,93923.0,0.15961168]
[1767682032228,0.09052,93941.0,93923.0,0.17026168]
[1767682032828,0.09052,93941.0,93930.0,0.11515288]
[1767682033233,0.09052,93941.0,93930.0,0.09021927]
[1767682034931,0.09052,93941.0,93930.0,0.10086827]
[1767682035133,0.09052,93941.0,93930.0,0.09021927]
[1767682035833,0.09052,93941.0,93926.0,0.02465348]
[1767682036933,0.09052,93941.0,93926.0,0.12552275]
[1767682037727,0.09052,93941.0,93929.0,0.09021927]
[1767682037933,0.09052,93941.0,93924.0,0.02437387]
[1767682038434,0.09052,93941.0,93925.0,0.01065]
[1767682038932,0.101168,93941.0,93925.0,0.10086927]
[1767682040329,0.010648,93939.0,93925.0,0.09021927]
[1767682043542,0.09052,93941.0,93925.0,0.09021927]
[1767682043739,0.010649,93932.0,93920.0,0.02309549]
[1767682043930,0.010649,93935.0,93923.0,0.1129604]
[1767682044327,0.0980106,93940.0,93914.0,0.09052]
[1767682044328,0.0283159,93936.0,93914.0,0.02274113]
[1767682044634,0.010649,93932.0,93921.0,0.16063991]
[1767682045045,0.010649,93932.0,93920.0,0.16063991]
[1767682045046,0.09052,93941.0,93927.0,0.09021927]
[1767682045232,0.010649,93934.0,93923.0,0.0224683]
[1767682045542,0.0283159,93940.0,93921.0,0.15892543]
[1767682045841,0.0283159,93940.0,93920.0,0.09021927]
[1767682046027,0.010649,93931.0,93921.0,0.15892543]
[1767682046427,0.0283159,93940.0,93921.0,0.15892543]
[1767682046632,0.010649,93933.0,93921.0,0.15892543]
[1767682048044,0.010649,93933.0,93920.0,0.15884757]
[1767682048243,0.010649,93933.0,93916.0,0.24906684]
[1767682048543,0.010649,93933.0,93917.0,0.16002092]
[1767682048943,0.010649,93933.0,93917.0,0.11223383]
[1767682049442,0.010649,93933.0,93917.0,0.27207239]
[1767682050745,0.010649,93933.0,93919.0,0.02150761]
[1767682051036,0.010649,93933.0,93920.0,0.15919859]
[1767682053545,0.010649,93933.0,93919.0,0.02150761]
[1767682054951,0.010649,93931.0,93919.0,0.02150761]
[1767682056840,0.010649,93931.0,93918.0,0.09021927]
[1767682057252,0.11792498,93933.0,93919.0,4.3e-07]
[1767682057444,0.0253246,93932.0,93913.0,0.02048908]
[1767682057645,0.01065,93925.0,93913.0,0.02048908]
[1767682057845,0.01065,93925.0,93914.0,0.02048908]
[1767682058247,0.01065,93925.0,93913.0,0.09586783]
[1767682058647,0.01065,93925.0,93914.0,0.12123692]
[1767682059149,0.01065,93925.0,93899.0,0.00013018]
[1767682059150,0.01065,93922.0,93910.0,0.02536909]
[1767682059645,0.0253246,93934.0,93913.0,0.12123692]
[1767682059846,0.0253246,93933.0,93913.0,0.12123692]
[1767682060848,0.0253246,93933.0,93915.0,0.02536909]
[1767682061248,0.01065,93928.0,93915.0,0.02536909]
[1767682061950,0.010649,93933.0,93919.0,0.12106537]
[1767682062159,0.010649,93937.0,93919.0,0.12106537]
[1767682062362,0.01065,93930.0,93919.0,0.12106537]
[1767682062566,0.01065,93928.0,93915.0,0.12077252]
[1767682062763,0.01065,93926.0,93916.0,0.02490469]
[1767682062967,0.01065,93929.0,93916.0,0.02490469]
[1767682063468,0.01065,93929.0,93917.0,0.02462466]
[1767682063866,0.01065,93927.0,93917.0,0.02462466]
[1767682064254,0.01065,93923.0,93909.0,0.12009388]
[1767682064459,0.01065,93923.0,93910.0,0.02422605]
[1767682064666,0.010651,93921.0,93910.0,0.12009388]
[1767682064968,0.01065,93922.0,93910.0,0.12009388]
[1767682065960,0.01065,93925.0,93912.0,0.02144845]
[1767682066571,0.01065,93925.0,93911.0,0.11731628]
[1767682066970,0.01065,93925.0,93912.0,0.02117991]
[1767682067170,0.0253246,93931.0,93912.0,0.02117991]
[1767682067671,0.0253246,93931.0,93911.0,0.09586783]
[1767682067874,0.010651,93920.0,93907.0,0.11704774]
[1767682068165,0.0253246,93928.0,93909.0,0.17990859]
[1767682068372,0.0253246,93923.0,93909.0,0.15906445]
[1767682068555,0.0253246,93923.0,93902.0,0.11671197]
[1767682068756,0.0253246,93923.0,93903.0,0.02084414]
[1767682068972,0.0253246,93923.0,93905.0,0.15906445]
[1767682068973,0.010651,93915.0,93905.0,0.15906445]
[1767682069165,0.010652,93912.0,93899.0,0.07853678]
[1767682069367,0.010652,93910.0,93899.0,0.07853678]
[1767682069572,0.010652,93910.0,93900.0,0.02057761]
[1767682069760,0.010651,93913.0,93901.0,0.02057761]
[1767682070270,0.010652,93911.0,93900.0,0.09586783]
[1767682070468,0.0253246,93916.0,93899.0,0.00013018]
[1767682070769,0.01065,93929.0,93899.0,0.00013018]
[1767682070770,0.0253246,93958.0,93915.0,0.01825359]
[1767682070957,0.09052,93958.0,93925.0,0.01799568]
[1767682071162,0.09052,93958.0,93931.0,0.01799568]
[1767682071357,0.09052,93958.0,93939.0,0.01799568]
[1767682071563,0.09052,93958.0,93926.0,0.01065]
[1767682071564,0.09052,93958.0,93943.0,0.11386351]
[1767682072363,0.09052,93958.0,93943.0,0.09586783]
[1767682072563,0.09052,93958.0,93938.0,0.0210871]
[1767682072872,0.09052,93958.0,93938.0,0.11695493]
[1767682075175,0.0253246,93951.0,93930.0,0.05908399]
[1767682075374,0.0253246,93951.0,93929.0,0.09052]
[1767682075572,0.0253246,93951.0,93931.0,0.15958358]
[1767682075874,0.0253246,93951.0,93930.0,0.15958358]
[1767682076075,0.0253246,93951.0,93929.0,0.20535481]
[1767682076275,0.0253246,93951.0,93930.0,0.15887187]
[1767682076677,0.0253246,93951.0,93930.0,0.27370668]
[1767682076878,0.09052,93958.0,93938.0,0.010648]
[1767682077076,0.09052,93958.0,93937.0,0.11483481]
[1767682078773,0.0253246,93960.0,93932.0,0.010649]
[1767682078774,0.0253246,93960.0,93938.0,0.11409753]
[1767682078974,0.09052,93959.0,93940.0,0.1169058]
[1767682079771,0.09052,93959.0,93929.0,0.09052]
[1767682079772,0.02681845,93975.0,93951.0,0.01797188]
[1767682080077,0.02681845,93973.0,93951.0,0.01797188]
[1767682080478,0.02681845,93973.0,93951.0,0.1169058]
[1767682080975,0.03798318,93966.0,93945.0,0.09893392]
[1767682081280,0.010646,93960.0,93943.0,0.09052]
[1767682081577,0.02733818,93961.0,93941.0,0.15920165]
[1767682081878,0.010646,93957.0,93940.0,0.15920165]
[1767682082186,0.02733818,93952.0,93931.0,0.09441842]
[1767682082372,0.09785515,93941.0,93911.0,0.07570965]
[1767682082570,0.09785515,93940.0,93908.0,0.010652]
[1767682082770,0.09785515,93938.0,93920.0,0.15873515]
[1767682083070,0.09785515,93938.0,93908.0,0.010652]
[1767682083274,0.010649,93935.0,93908.0,0.010652]
[1767682083475,0.010649,93935.0,93911.0,0.010652]
[1767682083869,0.010649,93935.0,93912.0,0.1598722]
[1767682084577,0.010649,93935.0,93913.0,0.01038084]
[1767682085079,0.010649,93932.0,93913.0,0.01038084]
[1767682086070,0.010649,93936.0,93913.0,0.01038084]
[1767682086280,0.010649,93933.0,93913.0,0.01038084]
[1767682086782,0.09785515,93936.0,93913.0,0.01038084]
[1767682086783,0.09785515,93936.0,93913.0,0.10479926]
[1767682086978,0.09785515,93936.0,93914.0,0.0097453]
[1767682087171,0.09785515,93936.0,93916.0,0.00945915]
[1767682087372,0.010649,93936.0,93919.0,0.00945915]
[1767682087572,0.010648,93940.0,93919.0,0.00945915]
[1767682087981,0.010649,93937.0,93919.0,0.00945915]
[1767682089081,0.010649,93937.0,93918.0,0.09441842]
[1767682089281,0.010649,93937.0,93918.0,0.10348526]
[1767682089475,0.13584133,93940.0,93918.0,0.11413626]
[1767682090073,0.010649,93938.0,93918.0,0.11413626]
[1767682090785,0.010649,93938.0,93919.0,0.00871245]
[1767682092683,0.11785818,93941.0,93904.0,0.010652]
[1767682092684,0.09052,93941.0,93923.0,0.00824372]
[1767682092883,0.010648,93939.0,93923.0,0.00824372]
[1767682093390,0.21571333,93941.0,93918.0,0.00796256]
[1767682094290,0.010649,93937.0,93919.0,0.010651]
[1767682095289,0.010649,93937.0,93919.0,0.01815033]
[1767682096094,0.010648,93940.0,93921.0,0.01065]
[1767682096392,0.010649,93938.0,93923.0,0.01065]
[1767682096593,0.010649,93938.0,93920.0,0.010651]
[1767682096891,0.010649,93938.0,93922.0,0.01065]
[1767682098695,0.010649,93934.0,93919.0,0.01815033]
[1767682099290,0.01065,93930.0,93919.0,0.00749933]
[1767682099788,0.12519333,93934.0,93914.0,0.00464841]
[1767682099978,0.010649,93938.0,93914.0,0.00464841]
[1767682099979,0.12519333,93933.0,93914.0,0.00464841]
[1767682100180,0.01065,93929.0,93914.0,0.00464841]
[1767682100988,0.01065,93927.0,93914.0,0.00464841]
[1767682101185,0.01065,93927.0,93912.0,0.06766864]
[1767682101386,0.01065,93927.0,93913.0,0.00410641]
[1767682101594,0.01065,93927.0,93914.0,0.00410641]
[1767682101785,0.01065,93927.0,93913.0,0.15916445]
[1767682101987,0.01065,93927.0,93912.0,0.01475741]
[1767682102295,0.01065,93927.0,93913.0,0.1601206]
[1767682102481,0.01065,93925.0,93913.0,0.1601206]
[1767682102686,0.01065,93924.0,93913.0,0.1601206]
[1767682104195,0.01065,93927.0,93913.0,0.1601206]
[1767682104494,0.12539407,93930.0,93913.0,0.1601206]
[1767682105191,0.01065,93925.0,93913.0,0.1601206]
[1767682105494,0.01065,93923.0,93910.0,0.09427561]
[1767682105796,0.01065,93926.0,93910.0,0.00375561]
[1767682106096,0.01065,93924.0,93907.0,0.01405292]
[1767682106495,0.09805589,93920.0,93908.0,0.16296865]
[1767682107593,0.09805589,93920.0,93908.0,0.15956773]
[1767682107796,0.010651,93916.0,93903.0,0.00313587]
[1767682109197,0.010651,93914.0,93903.0,0.00313587]
[1767682109795,0.010651,93917.0,93903.0,0.00313587]
[1767682109991,0.12519333,93917.0,93902.0,0.05848932]
[1767682110191,0.010652,93910.0,93899.0,0.00013018]
[1767682110501,0.010651,93913.0,93899.0,0.00013018]
[1767682111298,0.12519333,93918.0,93899.0,0.00013018]
[1767682111495,0.12519333,93918.0,93899.0,0.05714782]
[1767682111801,0.10870789,93910.0,93899.0,0.05714782]
[1767682112000,0.010652,93910.0,93904.0,0.05701764]
[1767682112198,0.010652,93904.0,93899.0,0.00013018]
[1767682112402,0.02833149,93908.0,93897.0,0.09052]
[1767682112702,0.010652,93905.0,93890.0,0.09052]
[1767682113087,0.010652,93905.0,93891.0,0.15891325]
[1767682113499,0.010653,93903.0,93891.0,0.15891325]
[1767682113900,0.010653,93903.0,93890.0,0.1596015]
[1767682114100,0.010653,93903.0,93892.0,0.1596015]
[1767682114496,0.010653,93903.0,93891.0,0.16069474]
[1767682114690,0.010653,93903.0,93893.0,0.16069474]
[1767682114999,0.010653,93903.0,93892.0,0.16069474]
[1767682115296,0.010653,93903.0,93894.0,0.16069474]
[1767682115501,0.010653,93903.0,93893.0,0.15948728]
[1767682115804,0.010653,93903.0,93892.0,0.15948728]
[1767682116005,0.010653,93903.0,93894.0,0.15948728]
[1767682116300,0.010653,93901.0,93893.0,0.04469113]
[1767682116601,0.010653,93901.0,93890.0,0.15946068]
[1767682116803,0.010653,93899.0,93890.0,0.15946068]
[1767682117005,7.603e-05,93904.0,93891.0,0.10115939]
[1767682117308,0.010653,93903.0,93887.0,0.01163328]
[1767682117796,7.603e-05,93904.0,93887.0,0.01163328]
[1767682118497,0.01072803,93904.0,93887.0,0.01163328]
[1767682118699,0.01072803,93904.0,93888.0,0.01161552]
[1767682119803,0.01065,93930.0,93891.0,0.01132314]
[1767682120004,0.01,103800.0,93886.0,0.09052]
[1767682120005,0.09052,93945.0,93917.0,0.09833942]
[1767682120203,0.22812,93962.0,93920.0,0.09805589]
[1767682120204,0.09979968,93940.0,93920.0,0.09805589]
[1767682120408,0.101168,93939.0,93919.0,0.00989409]
[1767682120594,0.09052,93939.0,93919.0,0.00989409]
[1767682120802,0.02833149,93943.0,93921.0,0.00989409]
[1767682121000,0.09057415,93938.0,93921.0,0.00989409]
[1767682121194,0.19037383,93938.0,93917.0,0.00960993]
[1767682121408,0.010649,93936.0,93914.0,0.10794935]
[1767682121708,0.12813117,93937.0,93915.0,0.00960993]
[1767682122607,0.12813117,93937.0,93915.0,0.02026093]
[1767682122810,0.09979968,93937.0,93918.0,0.00954433]
[1767682123907,0.09057415,93938.0,93920.0,0.10731473]
[1767682124506,0.09057415,93938.0,93920.0,0.11796573]
[1767682125508,0.09057415,93938.0,93920.0,0.01990984]
[1767682125815,0.09057415,93938.0,93920.0,0.10731473]
[1767682126016,0.09057415,93938.0,93921.0,0.01065]
[1767682127402,0.12813117,93931.0,93910.0,0.00846814]
[1767682127602,0.12813117,93931.0,93907.0,0.05785027]
[1767682127603,0.09979968,93925.0,93907.0,0.06631841]
[1767682127810,0.02833149,93927.0,93911.0,0.16026618]
[1767682128010,0.02833149,93927.0,93915.0,0.010651]
[1767682128213,0.02833149,93927.0,93912.0,0.16873432]
[1767682128410,0.02833149,93927.0,93913.0,0.010651]
[1767682128811,0.09979968,93931.0,93913.0,0.010651]
[1767682129214,0.12813117,93927.0,93911.0,0.010652]
[1767682129711,0.12813117,93927.0,93913.0,0.15893092]
[1767682130820,0.09979968,93927.0,93913.0,0.15893092]
[1767682133113,0.02833149,93938.0,93915.0,0.00777752]
[1767682133313,0.09805589,93930.0,93913.0,0.25727034]
[1767682133624,0.12813117,93928.0,93913.0,0.09833942]
[1767682133919,0.12813117,93927.0,93913.0,0.09833942]
[1767682134125,0.09979968,93926.0,93913.0,0.09833942]
[1767682136014,0.0961315,93925.0,93913.0,0.09833942]
[1767682137413,0.12452846,93925.0,93913.0,0.09833942]
[1767682137610,0.0961315,93922.0,93913.0,0.09833942]
[1767682137809,0.0961315,93922.0,93908.0,0.101172]
[1767682138219,0.0961315,93922.0,93910.0,0.010652]
[1767682138417,0.01065,93926.0,93910.0,0.010652]
[1767682138626,0.1067815,93926.0,93910.0,0.010652]
[1767682138812,0.12452846,93926.0,93907.0,0.010652]
[1767682139018,0.12452846,93924.0,93906.0,0.09052]
[1767682139319,0.09805589,93920.0,93909.0,0.010652]
[1767682140018,0.12452846,93924.0,93909.0,0.010652]
[1767682140326,0.12452846,93923.0,93909.0,0.010652]
[1767682140522,0.12452846,93923.0,93906.0,0.010652]
[1767682140711,0.12452846,93919.0,93903.0,0.101172]
[1767682141116,0.12452846,93919.0,93904.0,0.16032378]
[1767682141426,0.12257776,93915.0,93896.0,0.05896416]
[1767682141629,0.12257776,93915.0,93894.0,0.09428256]
[1767682141926,0.0941816,93915.0,93902.0,0.010653]
[1767682142323,0.0941816,93915.0,93904.0,0.010652]
[1767682143525,0.0941816,93915.0,93901.0,0.010653]
[1767682143723,0.10870689,93920.0,93901.0,0.010653]
[1767682143724,0.12257776,93913.0,93901.0,0.010653]
[1767682143924,0.12257776,93912.0,93901.0,0.010653]
[1767682144428,0.0941816,93912.0,93901.0,0.010653]
[1767682145928,0.0941816,93912.0,93898.0,0.09052]
[1767682146722,0.0941816,93912.0,93901.0,0.010653]
[1767682147729,0.0941816,93912.0,93903.0,0.010652]
[1767682148817,0.0941816,93912.0,93900.0,0.09805589]
[1767682148818,0.0941816,93912.0,93902.0,0.010653]
[1767682150517,0.02839616,93935.0,93912.0,0.00499015]
[1767682150723,0.12257776,93934.0,93913.0,0.010651]
[1767682150930,0.13322676,93933.0,93915.0,0.010651]
[1767682151130,0.12257776,93931.0,93915.0,0.010651]
[1767682151429,0.12257776,93931.0,93912.0,0.00471982]
[1767682151730,0.12257776,93931.0,93910.0,0.09805589]
[1767682151731,0.12257776,93930.0,93916.0,0.010651]
[1767682152825,0.12257776,93930.0,93919.0,0.010651]
[1767682153026,0.12257776,93930.0,93910.0,0.09805589]
[1767682153234,0.12257776,93928.0,93914.0,0.010651]
[1767682153620,0.12257776,93926.0,93914.0,0.010651]
[1767682154627,0.0941816,93926.0,93914.0,0.010651]
[1767682155022,0.0941816,93926.0,93916.0,0.010651]
[1767682158634,0.12257776,93926.0,93916.0,0.010651]
[1767682159031,0.12257776,93924.0,93916.0,0.010651]
[1767682159831,0.12257776,93933.0,93916.0,0.010651]
[1767682160023,0.12257776,93927.0,93918.0,0.010651]
[1767682160419,0.0941816,93926.0,93918.0,0.010651]
[1767682160627,0.02839616,93925.0,93918.0,0.010651]
[1767682163032,0.12257776,93925.0,93918.0,0.010651]
[1767682163333,0.12257776,93925.0,93916.0,0.010651]
[1767682163632,0.09052,93938.0,93908.0,0.09052]
[1767682163633,0.0941816,93922.0,93909.0,0.15892302]
[1767682163824,0.0941816,93922.0,93916.0,0.010651]
[1767682165233,0.0941816,93922.0,93910.0,0.09805589]
[1767682165234,0.0941816,93922.0,93918.0,0.010651]
[1767682165831,0.010649,93934.0,93918.0,0.010651]
[1767682166031,0.12257776,93928.0,93920.0,0.010651]
[1767682166438,0.02839616,93927.0,93920.0,0.010651]
[1767682166635,0.12257776,93927.0,93920.0,0.010651]
[1767682166838,0.02839616,93926.0,93920.0,0.010651]
[1767682171544,0.09123991,93924.0,93917.0,0.010651]
[1767682172138,0.11539523,93918.0,93908.0,0.09052]
[1767682172339,0.11539523,93917.0,93908.0,0.09052]
[1767682172641,0.02415532,93915.0,93909.0,0.13274503]
[1767682173634,0.09123991,93916.0,93909.0,0.13274503]
[1767682173939,0.11539523,93916.0,93909.0,0.07976977]
[1767682174830,0.09123991,93915.0,93909.0,0.07976977]
[1767682176843,0.09123991,93913.0,93900.0,0.07570965]
[1767682177038,0.09123991,93913.0,93900.0,0.08636265]
[1767682177238,0.11539523,93917.0,93902.0,0.010653]
[1767682181050,0.11539523,93917.0,93904.0,0.010652]
[1767682182854,0.09123991,93916.0,93904.0,0.010652]
[1767682184444,0.09123991,93916.0,93907.0,0.010652]
[1767682184639,0.02415532,93921.0,93902.0,0.02451466]